[Event "IX Iberoamericano Championship 2023"]
[Site "Panama City"]
[Date "2023.12.01"]
[Round "7.12"]
[White "Almedina Ortiz, Edgardo J."]
[Black "Matamoros Franco, Carlos S."]
[Result "1/2-1/2"]
[ECO "A70"]
[WhiteElo "2158"]
[BlackElo "2455"]
[Annotator "TA"]
[PlyCount "50"]
[EventDate "2023.11.27"]
[EventType "swiss"]
[EventCountry "PAN"]
[SourceTitle "playchess.com"]
[Source "ChessBase"]
[SourceQuality "1"]
[TimeControl "5400+30"]

{[%evp 18,50,59,56,46,19,12,14,8,27,0,0,23,0,0,0,0,0,0,0,14,0,13,13,13,18,44,13,31,31,133,158,156,-708,-706]} 1. d4 {[%emt 0:00:07]} Nf6 {[%emt 0:00:25]} 2. c4 {[%emt 0:00:21]} c5 {[%emt 0:00:30]} 3. d5 {[%emt 0:00:14]} g6 {[%emt 0:00:22]} 4. Nc3 {[%emt 0:00:10]} Bg7 {[%emt 0:00:06]} 5. e4 {[%emt 0:00:10]} d6 {[%emt 0:00:10]} 6. h3 {[%emt 0:00:14]} O-O {[%emt 0:00:19]} 7. Nf3 {[%emt 0:00:07]} e6 {[%emt 0:00:36]} 8. Bd3 {[%emt 0:00:11]} exd5 {[%emt 0:00:27]} 9. cxd5 {[%emt 0:00:13]} Re8 {[%emt 0:00:44]} 10. O-O {[%emt 0:00:24]} Nbd7 {[%emt 0:00:37][%cal Oc5c4] The modern move. A70: Modern Benoni: 6 e4 g6 7 Nf3.} 11. Bf4 {[%emt 0:00:55]} c4 $1 {[%emt 0:00:28]} 12. Bc2 {[%emt 0:01:23]} Nc5 $1 {[%emt 0:00:27] The position is equal.} 13. Re1 {[%emt 0:00:16] next Nd2 is good for White.} b5 {[%emt 0:00:51]} 14. a3 {[%emt 0:06:42]} Qb6 {[%emt 0:05:12]} 15. Qd2 {[%emt 0:01:14]} a5 {[%emt 0:09:07] [#]} 16. Bxd6 $146 {[%emt 0:31:37][%mdl 64] Decoy} ({Predecessor:} 16. Bh6 Bd7 17. Bxg7 Kxg7 18. Qd4 b4 19. Ne2 b3 20. Bd1 Rxe4 21. Qd2 Nd3 22. Rf1 Nxd5 {0-1 Weetik,V (2423)-Ibadov,D (2391) Titled Tuesday intern op 23rd May Late blitz 2023 (10)}) 16... Ncxe4 {[%emt 0:30:28]} 17. Bxe4 {[%emt 0:06:42]} Qxd6 {[%emt 0:03:49]} 18. Nxb5 {[%emt 0:03:51]} Qb6 {[%emt 0:00:09]} 19. Nc3 {[%emt 0:00:29]} Nxe4 {[%emt 0:00:58]} (19... Bd7 $5 {[%cal Rf6e4]}) 20. Nxe4 {[%emt 0:01:46][%cal Oe4f6] Nf6+! is the strong threat.} Bf5 {[%emt 0:00:49] A strong pair of Bishops.} 21. Nc3 {[%emt 0:04:12]} Reb8 {[%emt 0:06:28]} 22. Rad1 {[%emt 0:12:58]} Bd3 {[%emt 0:03:44]} 23. a4 {[%emt 0:06:07]} Qd6 {[%emt 0:22:42] [#]} (23... Qb4 $14) 24. Nb5 $1 $16 {[%emt 0:06:27]} Qb4 {[%emt 0:13:02] [#]} 25. Nd6 $2 Qxd6 {[%mdl 32768] Weighted Error Value: White=0.46/Black=0.12 (very precise) . An unexpected result.} 1/2-1/2

[Event "IX Iberoamericano Championship 2023"]
[Site "Panama City"]
[Date "2023.12.01"]
[Round "7.13"]
[White "Ulloa, Ruben Abraham"]
[Black "Ticona Rocabado, Licael Roderick"]
[Result "1-0"]
[ECO "C07"]
[WhiteElo "2150"]
[BlackElo "2412"]
[Annotator "TA"]
[PlyCount "63"]
[EventDate "2023.11.27"]
[EventType "swiss"]
[EventCountry "PAN"]
[SourceTitle "playchess.com"]
[Source "ChessBase"]
[SourceQuality "1"]
[TimeControl "5400+30"]

{[%evp 10,63,11,11,16,11,11,15,14,21,22,16,25,27,21,17,10,14,68,20,238,0,67,68,72,62,58,0,0,0,0,0,0,0,0,0,0,0,6,6,6,2,26,22,26,0,0,0,94,83,930,918,843,830,778,766]} 1. e4 {[%emt 0:02:36]} e6 {[%emt 0:03:06]} 2. d4 {[%emt 0:00:25]} d5 {[%emt 0:00:08]} 3. Nd2 {[%emt 1:28:59]} c5 {[%emt 0:00:07]} 4. exd5 {[%emt 0:00:00]} Qxd5 {[%emt 0:00:08]} 5. Ngf3 {[%emt 0:00:00]} cxd4 {[%emt 0:00:27]} 6. Bc4 {[%emt 0:00:00]} Qd7 {[%emt 0:00:44] C07: French Tarrasch: 3...c5, 4 Ngf3 and 4 exd5 Qxd5.} 7. O-O {[%emt 0:00:00]} Nc6 {[%emt 0:00:55]} 8. Nb3 {[%emt 0:00:00][%cal Rb3d4]} a6 {[%emt 0:00:33] The position is equal.} 9. Nbxd4 {[%emt 0:00:00]} Nxd4 {[%emt 0:00:10]} 10. Nxd4 {[%emt 0:00:00]} Qc7 {[%emt 0:00:06] Against Bf4} 11. Bb3 {[%emt 0:00:00] 11.Bd3 is the hot move.} Bd6 {[%emt 0:00:08]} 12. Re1 {[%emt 0:00:00]} Bxh2+ {[%emt 0:04:43]} 13. Kh1 {[%emt 0:00:00] [#]} h5 $146 {[%emt 0:02:23]} (13... Ne7 $1 $11) ({Predecessor:} 13... Ne7 14. Nxe6 Bxe6 15. Bxe6 fxe6 16. Qh5+ g6 17. Qxh2 Qxh2+ 18. Kxh2 Kf7 19. Bg5 h6 20. Bxe7 Kxe7 {½-½ Abdusattorov,N (2470)-Lupulescu,C (2637) Abu Dhabi op 24th 2017 (3)}) 14. Nf5 {[%emt 0:00:00] White is more active.} (14. g3 $14 Bxg3 15. fxg3 Qxg3 16. Re2) 14... Be5 $2 {[%emt 0:03:22] [#]} (14... g6 $1 $11 {and Black has nothing to worry.} 15. Qd4 Rh7) 15. f4 $2 {[%emt 0:00:00]} (15. Rxe5 $1 $18 {[%mdl 512]} Qxe5 16. Nd6+ (16. Bg5 f6 $17) 16... Ke7 17. Nc4) 15... exf5 {[%emt 0:09:43]} (15... Bf6 $11) 16. Rxe5+ $14 {[%emt 0:00:00]} Be6 {[%emt 0:04:41]} 17. Bxe6 {[%emt 0:00:00]} fxe6 {[%emt 0:00:02]} 18. Rxe6+ {[%emt 0:00:00]} (18. Qd5 $1 $14 Qf7 19. Rxe6+ Ne7 20. Qe5 (20. Qxb7 Qxe6 21. Qxa8+ Kf7 $11)) 18... Kf7 $1 $11 {[%emt 0:00:35]} 19. Qd5 {[%emt 0:00:00][%csl LRa6,LRf5] Rc6+ would kill now.} Nf6 $1 {[%emt 0:00:20]} (19... Ne7 $2 20. Qb3 (20. Rxa6+ $2 Nxd5 21. Rxa8 Rxa8 $19) 20... Kf8 21. Bd2 $18) 20. Qb3 {[%emt 0:00:00]} (20. Rxa6+ $2 Nxd5 $19) (20. Qxf5 Qc8 21. Re5 Qxf5 22. Rxf5 Rac8 $15) 20... Kg6 {[%emt 0:00:06]} 21. Qg3+ {[%emt 0:00:00]} Kf7 {[%emt 0:09:22]} 22. Qb3 {[%emt 0:00:00]} (22. Re2 Rhe8 23. Qb3+ Kg6 $17) 22... Kg6 {[%emt 0:00:36] White must now prevent ...Rae8.} 23. Qg3+ {[%emt 0:00:00]} Kh7 $132 {[%emt 0:00:02][%mdl 2048] Black is not keeping still} 24. Qg5 $1 {[%emt 0:00:00]} Rhe8 {[%emt 0:07:18]} ({Weaker is} 24... Qxc2 25. Be3 (25. Re7 $2 Qd1+ 26. Kh2 Ng4+ 27. Kg3 h4+ {[%mdl 64] Decoy} 28. Kxh4 Kg8+ 29. Kg3 Rh7 $19) 25... Qc7 26. Qxf5+ (26. Bd4 Rhf8 $16) 26... Kg8 27. Re1 $16) (24... Rae8 {is more complex.} 25. Qxf5+ Kh6 26. Re5 Qc8) 25. Qxf5+ {[%emt 0:00:00]} Kh8 {[%emt 0:02:43]} (25... Kh6 {is interesting.} 26. Re5 Qc8 27. Qg5+ Kh7) 26. Re5 {[%emt 0:00:00]} Qb6 {[%emt 0:11:03]} 27. Be3 {[%emt 0:00:00] Dodges Qf2} Qxb2 {[%emt 0:00:10]} 28. Re1 {[%emt 0:00:00]} Qc3 {[%emt 0:14:12]} (28... Kg8 $11) 29. Bf2 $16 {[%emt 0:00:00] Strongly threatening Rxe8+.} Kg8 $2 {[%emt 0:10:21][%mdl 8192]} (29... Rxe5 $16 30. fxe5 Nh7) 30. Rxe8+ $18 {[%emt 0:00:00][%mdl 64] Deflection. White is clearly winning.} Rxe8 {[%emt 0:00:05]} 31. Rxe8+ {[%emt 0:00:00]} Nxe8 {[%emt 0:00:04]} 32. Qd5+ {[%emt 0:00:00] Weighted Error Value: White=0.16 (very precise) /Black=0.25 (precise)} ({Stronger than} 32. Qxh5 Nf6 33. Qf5 Qa1+ 34. Bg1 Qxa2 $11) 1-0

[Event "IX Iberoamericano Championship 2023"]
[Site "Panama City"]
[Date "2023.12.01"]
[Round "7.14"]
[White "Ynojosa Aponte, Felix Jose"]
[Black "Delgado Rosas, Alex Antonio"]
[Result "0-1"]
[ECO "A28"]
[WhiteElo "2393"]
[BlackElo "2105"]
[Annotator "RC"]
[PlyCount "88"]
[EventDate "2023.11.27"]
[EventType "swiss"]
[EventCountry "PAN"]
[SourceTitle "playchess.com"]
[Source "ChessBase"]
[SourceQuality "1"]
[TimeControl "5400+30"]

1. c4 {[%emt 0:05:01]} e5 {[%emt 0:00:09]} 2. Nc3 {[%emt 0:00:02]} Nc6 {[%emt 0:00:04]} 3. Nf3 {[%emt 0:00:02]} Nf6 {[%emt 0:00:06]} 4. e4 {[%emt 0:00:03]} Bb4 {[%emt 0:00:22]} 5. d3 {[%emt 0:00:07]} d6 {[%emt 0:00:03]} 6. Be2 {[%emt 0:00:04]} h6 {[%emt 0:01:37]} 7. O-O {[%emt 0:00:22]} Bc5 {[%emt 0:00:43]} 8. Na4 {[%emt 0:01:32]} Bg4 {[%emt 0:02:53]} 9. Nxc5 {[%emt 0:02:06]} dxc5 {[%emt 0:00:59]} 10. Be3 {[%emt 0:00:51]} Bxf3 {[%emt 0:03:14]} 11. Bxf3 {[%emt 0:00:06]} Qe7 {[%emt 0:03:03]} 12. g3 {[%emt 0:03:27]} O-O {[%emt 0:02:12]} 13. Bg2 {[%emt 0:00:43]} Rad8 {[%emt 0:00:54]} 14. a3 {[%emt 0:02:24]} b6 {[%emt 0:00:52]} 15. Qa4 {[%emt 0:03:05]} Qd7 {[%emt 0:00:47]} 16. b4 {[%emt 0:00:39]} Nd4 {[%emt 0:02:24]} 17. Qxd7 {[%emt 0:00:37]} Rxd7 {[%emt 0:00:04]} 18. bxc5 {[%emt 0:01:14]} Nc2 {[%emt 0:01:52]} 19. cxb6 {[%emt 0:21:19]} Nxa1 {[%emt 0:10:44]} 20. Bh3 {[%emt 0:04:18]} Nc2 {[%emt 0:01:35]} 21. Bxd7 {[%emt 0:02:00]} Nxd7 {[%emt 0:03:00]} 22. bxc7 {[%emt 0:00:04]} Nxe3 {[%emt 0:00:52]} 23. fxe3 {[%emt 0:00:02]} Rc8 {[%emt 0:00:34]} 24. Kf2 {[%emt 0:01:53]} Rxc7 {[%emt 0:00:22]} 25. Rb1 {[%emt 0:02:04]} Kf8 {[%emt 0:01:39]} 26. Ke2 {[%emt 0:00:24]} Ke7 {[%emt 0:00:38]} 27. Kd2 {[%emt 0:02:04]} Nc5 {[%emt 0:00:45]} 28. Kc2 {[%emt 0:08:13]} Rd7 {[%emt 0:02:04]} 29. Rd1 {[%emt 0:00:01]} Rb7 {[%emt 0:00:51]} 30. Rf1 {[%emt 0:01:48]} f6 {[%emt 0:00:58]} 31. g4 {[%emt 0:03:05]} a5 {[%emt 0:00:24]} 32. d4 {[%emt 0:00:17]} Nxe4 {[%emt 0:01:08]} 33. Kd3 {[%emt 0:00:02]} Ng5 {[%emt 0:00:18]} 34. c5 {[%emt 0:00:15]} Rb3+ {[%emt 0:04:41]} 35. Kc4 {[%emt 0:00:01]} Rxe3 {[%emt 0:00:02]} 36. d5 {[%emt 0:00:24]} Ne4 {[%emt 0:00:07]} 37. d6+ {[%emt 0:02:22]} Ke6 {[%emt 0:00:52]} 38. Rc1 {[%emt 0:00:16]} Rxa3 {[%emt 0:03:53]} 39. Kb5 {[%emt 0:00:07]} Rc3 {[%emt 0:03:14]} 40. Rxc3 {[%emt 0:00:04]} Nxc3+ {[%emt 0:00:03]} 41. Kc6 {[%emt 0:00:12]} Nd5 {[%emt 0:00:27]} 42. d7 {[%emt 0:00:46]} Ke7 {[%emt 0:00:13]} 43. Kxd5 {[%emt 0:00:25]} Kxd7 {[%emt 0:00:03]} 44. c6+ {[%emt 0:00:04]} Kc7 {[%emt 0:00:22]} 0-1

[Event "IX Iberoamericano Championship 2023"]
[Site "Panama City"]
[Date "2023.12.01"]
[Round "7.15"]
[White "Morales Carlos"]
[Black "Duran Vega, Sergio"]
[Result "0-1"]
[ECO "D32"]
[WhiteElo "2102"]
[BlackElo "2392"]
[Annotator "RC"]
[PlyCount "112"]
[EventDate "2023.11.27"]
[EventType "swiss"]
[EventCountry "PAN"]
[SourceTitle "playchess.com"]
[Source "ChessBase"]
[SourceQuality "1"]
[TimeControl "5400+30"]

1. c4 {[%emt 0:01:05]} Nf6 {[%emt 0:05:50]} 2. Nf3 {[%emt 0:00:22]} e6 {[%emt 0:01:20]} 3. Nc3 {[%emt 0:00:15]} d5 {[%emt 0:00:11]} 4. e3 {[%emt 0:00:13]} c5 {[%emt 0:01:40]} 5. cxd5 {[%emt 0:00:20]} exd5 {[%emt 0:00:15]} 6. d4 {[%emt 0:00:07]} Nc6 {[%emt 0:00:16]} 7. Be2 {[%emt 0:00:18]} Be7 {[%emt 0:05:24]} 8. dxc5 {[%emt 0:01:55]} Bxc5 {[%emt 0:00:17]} 9. O-O {[%emt 0:00:12]} O-O {[%emt 0:00:02]} 10. b3 {[%emt 0:01:05]} Bb6 {[%emt 0:01:27]} 11. Na4 {[%emt 0:01:52]} Bc7 {[%emt 0:00:38]} 12. Bb2 {[%emt 0:00:31]} Bg4 {[%emt 0:00:38]} 13. h3 {[%emt 0:00:57]} Be6 {[%emt 0:09:40]} 14. Rc1 {[%emt 0:16:52]} Qe7 {[%emt 0:00:03]} 15. Bb5 {[%emt 0:00:47]} Nb4 {[%emt 0:06:53]} 16. a3 {[%emt 0:11:01]} a6 {[%emt 0:00:06]} 17. Be2 {[%emt 0:00:04]} Nc6 {[%emt 0:00:09]} 18. Nc5 {[%emt 0:00:11]} Bd6 {[%emt 0:01:21]} 19. b4 {[%emt 0:00:34]} a5 {[%emt 0:03:29]} 20. Nxe6 {[%emt 0:23:58]} fxe6 {[%emt 0:00:08]} 21. b5 {[%emt 0:00:32]} Nb8 {[%emt 0:00:45]} 22. Qa4 {[%emt 0:00:31]} Nbd7 {[%emt 0:00:51]} 23. Nd2 {[%emt 0:05:41]} Nc5 {[%emt 0:03:33]} 24. Qh4 {[%emt 0:00:27]} Rac8 {[%emt 0:01:56]} 25. a4 {[%emt 0:09:43]} Nfe4 {[%emt 0:02:20]} 26. Qxe7 {[%emt 0:00:16]} Bxe7 {[%emt 0:00:05]} 27. Nxe4 {[%emt 0:00:20]} Nxe4 {[%emt 0:00:16]} 28. Bg4 {[%emt 0:01:43]} Kf7 {[%emt 0:03:05]} 29. Bd4 {[%emt 0:02:05]} Ba3 {[%emt 0:03:23]} 30. Ra1 {[%emt 0:02:11]} Bc5 {[%emt 0:01:29]} 31. Be5 {[%emt 0:01:25]} Ke7 {[%emt 0:06:29]} 32. Rac1 {[%emt 0:07:05]} g6 {[%emt 0:07:44]} 33. h4 {[%emt 0:02:27]} Nxf2 {[%emt 0:07:43]} 34. Rxf2 {[%emt 0:05:53]} Bxe3 {[%emt 0:00:35]} 35. Rxc8 {[%emt 0:00:43]} Rxc8 {[%emt 0:01:07]} 36. Kf1 {[%emt 0:00:08]} Rc1+ {[%emt 0:01:37]} 37. Ke2 {[%emt 0:00:11]} Bxf2 {[%emt 0:00:07]} 38. Kxf2 {[%emt 0:00:05]} Kd7 {[%emt 0:00:10]} 39. g3 {[%emt 0:01:34]} Rc2+ {[%emt 0:00:58]} 40. Kf1 {[%emt 0:01:34]} b6 {[%emt 0:03:05]} 41. Bd1 {[%emt 0:00:47]} Rc1 {[%emt 0:02:58]} 42. Ke2 {[%emt 0:00:45]} Rc4 {[%emt 0:00:08]} 43. Kd3 {[%emt 0:00:12]} Re4 {[%emt 0:00:22]} 44. Bd4 {[%emt 0:00:16]} Kc7 {[%emt 0:00:24]} 45. Bf3 {[%emt 0:00:19]} Re1 {[%emt 0:00:10]} 46. Kd2 {[%emt 0:00:07]} Rb1 {[%emt 0:01:12]} 47. Be5+ {[%emt 0:00:09]} Kd7 {[%emt 0:00:33]} 48. Bd4 {[%emt 0:01:09]} Rb4 {[%emt 0:00:40]} 49. Bxb6 {[%emt 0:00:10]} Rxa4 {[%emt 0:00:04]} 50. Ke3 {[%emt 0:02:06]} Ra3+ {[%emt 0:00:46]} 51. Kf2 {[%emt 0:00:22]} a4 {[%emt 0:00:28]} 52. Bc5 {[%emt 0:00:31]} Rb3 {[%emt 0:00:14]} 53. Bd1 {[%emt 0:00:08]} Rc3 {[%emt 0:01:09]} 54. Bb4 {[%emt 0:00:52]} Rc4 {[%emt 0:00:50]} 55. Bf8 {[%emt 0:00:14]} Kc7 {[%emt 0:00:43]} 56. Ke3 {[%emt 0:00:25]} a3 {[%emt 0:01:07]} 0-1

[Event "IX Iberoamericano Championship 2023"]
[Site "Panama City"]
[Date "2023.12.01"]
[Round "7.16"]
[White "Roselli Mailhe, Bernardo"]
[Black "Gonzalez Ochoa, Yoana"]
[Result "1-0"]
[ECO "D38"]
[WhiteElo "2364"]
[BlackElo "2085"]
[Annotator "RC"]
[PlyCount "99"]
[EventDate "2023.11.27"]
[EventType "swiss"]
[EventCountry "PAN"]
[SourceTitle "playchess.com"]
[Source "ChessBase"]
[SourceQuality "1"]
[TimeControl "5400+30"]

1. d4 {[%emt 0:00:03]} Nf6 {[%emt 0:00:15]} 2. c4 {[%emt 0:00:04]} e6 {[%emt 0:00:05]} 3. Nf3 {[%emt 0:00:04]} d5 {[%emt 0:00:27]} 4. Nc3 {[%emt 0:00:04]} Bb4 {[%emt 0:00:05]} 5. Qa4+ {[%emt 0:00:06]} Nc6 {[%emt 0:00:09]} 6. e3 {[%emt 0:00:08]} O-O {[%emt 0:00:18]} 7. Bd2 {[%emt 0:00:03]} dxc4 {[%emt 0:00:39]} 8. Bxc4 {[%emt 0:00:22]} Bd6 {[%emt 0:00:05]} 9. Nb5 {[%emt 0:06:59]} Be7 {[%emt 0:00:23]} 10. a3 {[%emt 0:00:10]} a6 {[%emt 0:00:13]} 11. Nc3 {[%emt 0:00:05]} Bd6 {[%emt 0:00:05]} 12. Qc2 {[%emt 0:02:58]} e5 {[%emt 0:00:37]} 13. dxe5 {[%emt 0:03:15]} Nxe5 {[%emt 0:00:09]} 14. Be2 {[%emt 0:01:48]} Bg4 {[%emt 0:03:05]} 15. h3 {[%emt 0:07:10]} Nxf3+ {[%emt 0:02:00]} 16. Bxf3 {[%emt 0:03:47]} Bxf3 {[%emt 0:00:18]} 17. gxf3 {[%emt 0:00:05]} Qe7 {[%emt 0:05:53]} 18. Rg1 {[%emt 0:04:11]} Rad8 {[%emt 0:06:03]} 19. O-O-O {[%emt 0:02:41]} b5 {[%emt 0:00:46]} 20. Ne2 {[%emt 0:06:08]} c5 {[%emt 0:03:02]} 21. Qf5 {[%emt 0:02:53]} Qe5 {[%emt 0:04:10]} 22. Ng3 {[%emt 0:10:49]} Qe6 {[%emt 0:16:05]} 23. Ba5 {[%emt 0:21:01]} Rd7 {[%emt 0:08:04]} 24. f4 {[%emt 0:01:20]} b4 {[%emt 0:04:10]} 25. Qxe6 {[%emt 0:04:28]} fxe6 {[%emt 0:00:08]} 26. axb4 {[%emt 0:00:03]} cxb4 {[%emt 0:00:08]} 27. Bb6 {[%emt 0:00:12]} Rc8+ {[%emt 0:01:18]} 28. Kb1 {[%emt 0:01:15]} Rc6 {[%emt 0:00:51]} 29. Bd4 {[%emt 0:00:09]} Kf7 {[%emt 0:00:08]} 30. Bxf6 {[%emt 0:03:04]} gxf6 {[%emt 0:00:17]} 31. Nh5 {[%emt 0:00:14]} Re7 {[%emt 0:04:51]} 32. Rg7+ {[%emt 0:03:09]} Kf8 {[%emt 0:00:01]} 33. Rdg1 {[%emt 0:00:09]} Rxg7 {[%emt 0:01:08]} 34. Rxg7 {[%emt 0:00:02]} h6 {[%emt 0:01:31]} 35. Rg6 {[%emt 0:06:01]} Be7 {[%emt 0:00:27]} 36. Nxf6 {[%emt 0:00:40]} Kf7 {[%emt 0:00:27]} 37. Ng4 {[%emt 0:01:29]} Kxg6 {[%emt 0:00:53]} 38. Ne5+ {[%emt 0:00:03]} Kh5 {[%emt 0:00:06]} 39. Nxc6 {[%emt 0:00:04]} Bh4 {[%emt 0:01:17]} 40. Kc2 {[%emt 0:01:36]} Bxf2 {[%emt 0:01:17]} 41. Kd2 {[%emt 0:00:06]} Kh4 {[%emt 0:01:07]} 42. Ke2 {[%emt 0:00:05]} Bg1 {[%emt 0:00:12]} 43. Nxb4 {[%emt 0:01:16]} a5 {[%emt 0:00:50]} 44. Nc6 {[%emt 0:00:15]} a4 {[%emt 0:00:02]} 45. Nd4 {[%emt 0:02:20]} Kxh3 {[%emt 0:00:22]} 46. Nf3 {[%emt 0:04:43]} Kg2 {[%emt 0:02:08]} 47. Nxg1 {[%emt 0:00:19]} Kxg1 {[%emt 0:00:21]} 48. e4 {[%emt 0:00:04]} Kg2 {[%emt 0:00:52]} 49. f5 {[%emt 0:00:05]} exf5 {[%emt 0:00:04]} 50. exf5 {[%emt 0:00:04]} 1-0

[Event "IX Iberoamericano Championship 2023"]
[Site "Panama City"]
[Date "2023.12.01"]
[Round "7.17"]
[White "Esquivel Golcher, Luis Enrique"]
[Black "Soto, Miguel Angel"]
[Result "0-1"]
[ECO "B72"]
[WhiteElo "2108"]
[BlackElo "2359"]
[Annotator "RC"]
[PlyCount "42"]
[EventDate "2023.11.27"]
[EventType "swiss"]
[EventCountry "PAN"]
[SourceTitle "playchess.com"]
[Source "ChessBase"]
[SourceQuality "1"]
[TimeControl "5400+30"]

1. e4 {[%emt 0:00:49]} c5 {[%emt 1:31:00]} 2. Nf3 {[%emt 1:30:41]} d6 {[%emt 0:00:00]} 3. d4 {[%emt 0:00:00]} cxd4 {[%emt 0:00:00]} 4. Nxd4 {[%emt 0:00:00]} Nf6 {[%emt 0:00:00]} 5. Nc3 {[%emt 0:00:00]} g6 {[%emt 0:00:00]} 6. Be3 {[%emt 0:00:00]} Bg7 {[%emt 0:00:00]} 7. Be2 {[%emt 0:00:00]} Nc6 {[%emt 0:00:00]} 8. Qd2 {[%emt 0:00:00]} Bd7 {[%emt 0:00:00]} 9. O-O-O {[%emt 0:00:00]} Rc8 {[%emt 0:00:00]} 10. h4 {[%emt 0:00:00]} h5 {[%emt 0:00:00]} 11. Kb1 {[%emt 0:00:00]} a6 {[%emt 0:00:00]} 12. f3 {[%emt 0:00:00]} Ne5 {[%emt 0:00:00]} 13. g4 {[%emt 0:00:00]} hxg4 {[%emt 0:00:00]} 14. f4 {[%emt 0:00:00]} Nc6 {[%emt 0:00:00]} 15. Nxc6 {[%emt 0:00:00]} Bxc6 {[%emt 0:00:00]} 16. Bd4 {[%emt 0:00:00]} e5 {[%emt 0:00:00]} 17. fxe5 {[%emt 0:00:00]} dxe5 {[%emt 0:00:00]} 18. Bxe5 {[%emt 0:00:00]} Qxd2 {[%emt 0:00:00]} 19. Rxd2 {[%emt 0:00:00]} Nxe4 {[%emt 0:00:00]} 20. Bxg7 {[%emt 0:00:00]} Nxd2+ {[%emt 0:00:00]} 21. Kc1 {[%emt 0:00:00]} Bxh1 {[%emt 0:00:00]} 0-1

[Event "IX Iberoamericano Championship 2023"]
[Site "Panama City"]
[Date "2023.12.01"]
[Round "7.18"]
[White "Solares Orozco, Kebert"]
[Black "Pazos Gambarrotti, Plinio"]
[Result "1-0"]
[ECO "A40"]
[WhiteElo "2312"]
[BlackElo "1995"]
[Annotator "RC"]
[PlyCount "49"]
[EventDate "2023.11.27"]
[EventType "swiss"]
[EventCountry "PAN"]
[SourceTitle "playchess.com"]
[Source "ChessBase"]
[SourceQuality "1"]
[TimeControl "5400+30"]

1. d4 {[%emt 0:00:33]} g6 {[%emt 0:02:00]} 2. c4 {[%emt 0:00:58]} Bg7 {[%emt 0:00:10]} 3. Nc3 {[%emt 0:00:07]} c5 {[%emt 0:00:08]} 4. d5 {[%emt 0:00:07]} Bxc3+ {[%emt 0:00:05]} 5. bxc3 {[%emt 0:00:08]} f5 {[%emt 0:00:02]} 6. e4 {[%emt 0:04:32]} fxe4 {[%emt 0:00:09]} 7. f3 {[%emt 0:00:04]} Nf6 {[%emt 0:01:04]} 8. fxe4 {[%emt 0:00:56]} Qa5 {[%emt 0:01:44]} 9. Qc2 {[%emt 0:00:17]} Nxe4 {[%emt 0:00:49]} 10. Bd3 {[%emt 0:01:15]} Nf6 {[%emt 0:00:33]} 11. d6 {[%emt 0:04:48]} Nc6 {[%emt 0:01:19]} 12. Nf3 {[%emt 0:03:48]} Nd4 {[%emt 0:13:09]} 13. Nxd4 {[%emt 0:00:15]} cxd4 {[%emt 0:00:04]} 14. Bxg6+ {[%emt 0:00:15]} Kd8 {[%emt 0:01:23]} 15. dxe7+ {[%emt 0:01:42]} Kxe7 {[%emt 0:00:12]} 16. O-O {[%emt 0:01:07]} Kd8 {[%emt 0:05:22]} 17. Bd3 {[%emt 0:06:42]} Ne8 {[%emt 0:00:41]} 18. cxd4 {[%emt 0:00:19]} d6 {[%emt 0:00:35]} 19. c5 {[%emt 0:00:59]} h6 {[%emt 0:04:02]} 20. Bf4 {[%emt 0:04:15]} dxc5 {[%emt 0:02:12]} 21. dxc5 {[%emt 0:00:30]} Bd7 {[%emt 0:01:27]} 22. Bf5 {[%emt 0:01:11]} Qa4 {[%emt 0:01:40]} 23. Rad1 {[%emt 0:00:09]} Qxc2 {[%emt 0:00:59]} 24. Rxd7+ {[%emt 0:00:07]} Kc8 {[%emt 0:00:10]} 25. Rd3# {[%emt 0:00:06]} 1-0